[Event "4. Memorial Svat.Hastika OPEN"]
[Site "Jesenik, Czech Republic"]
[Date "2022.09.03"]
[Round "1.8"]
[White "Skovron, Josef"]
[Black "Basler, Jan"]
[Result "1-0"]
[TimeControl "720+3"]
[WhiteFideId "329886"]
[BlackFideId "23718420"]
[WhiteElo "1821"]
[BlackElo "1285"]

1. e4 {[%clk 00:12:04]} {[%emt 00:00:02]} e5 {[%clk 00:12:06]} 2. Nf3 {[%clk
00:12:05]} {[%emt 00:00:02]} Nc6 {[%clk 00:12:08]} 3. d4 {[%clk 00:12:06]}
{[%emt 00:00:02]} exd4 {[%clk 00:12:09]} {[%emt 00:00:02]} 4. Bc4 {[%clk
00:12:08]} Nf6 {[%clk 00:11:23]} {[%emt 00:00:49]} 5. e5 {[%clk 00:12:07]}
{[%emt 00:00:04]} Ng4 {[%clk 00:10:43]} {[%emt 00:00:43]} 6. O-O {[%clk
00:05:58]} {[%emt 00:06:12]} Ncxe5 {[%clk 00:09:09]} {[%emt 00:01:37]} 7. Nxe5
{[%clk 00:05:46]} {[%emt 00:00:14]} Nxe5 {[%clk 00:09:08]} {[%emt 00:00:05]} 8.
Re1 {[%clk 00:05:38]} {[%emt 00:00:10]} Qe7 {[%clk 00:06:31]} {[%emt 00:02:40]}
9. Na3 {[%clk 00:03:31]} {[%emt 00:02:11]} d6 {[%clk 00:05:21]} {[%emt
00:01:13]} 10. f4 {[%clk 00:03:24]} {[%emt 00:00:10]} f6 {[%clk 00:05:14]}
{[%emt 00:00:09]} 11. fxe5 {[%clk 00:03:25]} {[%emt 00:00:02]} dxe5 {[%clk
00:05:17]} 12. Bd2 {[%clk 00:02:33]} {[%emt 00:00:55]} Be6 {[%clk 00:05:04]}
{[%emt 00:00:16]} 13. Bxe6 {[%clk 00:02:23]} {[%emt 00:00:12]} Qxe6 {[%clk
00:05:06]} {[%emt 00:00:02]} 14. Qf3 {[%clk 00:02:19]} {[%emt 00:00:07]} O-O-O
{[%clk 00:04:48]} {[%emt 00:00:21]} 15. Qb3 {[%clk 00:02:10]} {[%emt 00:00:11]}
Qxb3 {[%clk 00:04:44]} {[%emt 00:00:08]} 16. axb3 {[%clk 00:02:11]} {[%emt
00:00:01]} c6 {[%clk 00:03:27]} {[%emt 00:01:21]} 17. Nc4 {[%clk 00:02:05]}
{[%emt 00:00:08]} b5 {[%clk 00:03:21]} {[%emt 00:00:10]} 18. Na5 {[%clk
00:01:51]} {[%emt 00:00:17]} Kc7 {[%clk 00:03:10]} {[%emt 00:00:15]} 19. b4
{[%clk 00:01:53]} {[%emt 00:00:01]} Kb6 {[%clk 00:03:06]} {[%emt 00:00:07]} 20.
Nb3 {[%clk 00:01:52]} {[%emt 00:00:03]} Rc8 {[%clk 00:02:32]} {[%emt 00:00:37]}
21. Ra2 {[%clk 00:01:45]} {[%emt 00:00:11]} c5 {[%clk 00:02:23]} {[%emt
00:00:11]} 22. Rea1 {[%clk 00:01:38]} {[%emt 00:00:10]} c4 {[%clk 00:01:51]}
{[%emt 00:00:35]} 23. Ra6+ {[%clk 00:01:38]} {[%emt 00:00:03]} Kb7 {[%clk
00:01:35]} {[%emt 00:00:19]} 24. Rxa7+ {[%clk 00:01:39]} {[%emt 00:00:02]} Kb8
{[%clk 00:01:31]} {[%emt 00:00:07]} 25. Ra8+ {[%clk 00:01:23]} {[%emt
00:00:19]} Kc7 {[%clk 00:01:33]} 26. Rxc8+ {[%clk 00:01:21]} {[%emt 00:00:05]}
Kxc8 {[%clk 00:01:35]} 27. Nc5 {[%clk 00:01:17]} {[%emt 00:00:07]} Bxc5 {[%clk
00:01:36]} {[%emt 00:00:03]} 28. bxc5 {[%clk 00:01:19]} {[%emt 00:00:01]} Kb7
{[%clk 00:01:38]} {[%emt 00:00:01]} 29. Bb4 {[%clk 00:01:13]} {[%emt 00:00:09]}
Rd8 {[%clk 00:01:14]} {[%emt 00:00:28]} 30. Kf2 {[%clk 00:01:14]} {[%emt
00:00:01]} d3 {[%clk 00:01:16]} 31. cxd3 {[%clk 00:01:07]} {[%emt 00:00:11]}
cxd3 {[%clk 00:01:18]} 32. Ke3 {[%clk 00:01:07]} {[%emt 00:00:02]} f5 {[%clk
00:01:19]} {[%emt 00:00:02]} 33. Ra5 {[%clk 00:00:59]} {[%emt 00:00:11]} f4+
{[%clk 00:00:49]} {[%emt 00:00:33]} 34. Kd2 {[%clk 00:00:58]} {[%emt 00:00:03]}
Kc6 {[%clk 00:00:47]} {[%emt 00:00:05]} 35. Ra6+ {[%clk 00:00:58]} {[%emt
00:00:03]} Kb7 {[%clk 00:00:49]} {[%emt 00:00:03]} 36. Rb6+ {[%clk 00:00:59]}
{[%emt 00:00:02]} Ka7 {[%emt 00:00:06]} 37. Re6 {[%clk 00:00:58]} {[%emt
00:00:03]} Rd4 {[%clk 00:00:43]} {[%emt 00:00:07]} 38. Bc3 {[%clk 00:00:56]}
{[%emt 00:00:04]} Re4 {[%clk 00:00:38]} {[%emt 00:00:08]} 39. Rxe5 {[%clk
00:00:57]} {[%emt 00:00:02]} b4 {[%emt 00:00:50]} 1-0

[Event "4. Memorial Svat.Hastika OPEN"]
[Site "Jesenik, Czech Republic"]
[Date "2022.09.03"]
[Round "1.9"]
[White "Zamarsky, Patrik"]
[Black "Taborsky, Bedrich"]
[Result "1-0"]
[TimeControl "720+3"]
[WhiteFideId "23714280"]
[BlackFideId "378151"]
[WhiteElo "1216"]
[BlackElo "1793"]

1. e4 {[%clk 00:12:03]} {[%emt 00:00:02]} g6 {[%clk 00:12:06]} 2. Nf3 {[%clk
00:12:02]} {[%emt 00:00:04]} Bg7 {[%clk 00:12:07]} {[%emt 00:00:02]} 3. d4
{[%clk 00:12:01]} {[%emt 00:00:04]} c5 {[%clk 00:12:05]} {[%emt 00:00:05]} 4.
c3 {[%clk 00:11:56]} {[%emt 00:00:08]} cxd4 {[%clk 00:12:06]} {[%emt 00:00:03]}
5. cxd4 {[%clk 00:11:57]} {[%emt 00:00:02]} d6 {[%clk 00:12:07]} {[%emt
00:00:02]} 6. Nc3 {[%clk 00:11:58]} {[%emt 00:00:02]} Nd7 {[%clk 00:12:07]}
{[%emt 00:00:02]} 7. Bc4 {[%clk 00:11:48]} {[%emt 00:00:13]} b6 {[%clk
00:12:07]} {[%emt 00:00:03]} 8. O-O {[%clk 00:11:34]} {[%emt 00:00:17]} Bb7
{[%clk 00:12:10]} 9. Re1 {[%clk 00:11:29]} {[%emt 00:00:09]} Nh6 {[%clk
00:11:50]} {[%emt 00:00:23]} 10. h3 {[%clk 00:10:56]} {[%emt 00:00:36]} O-O
{[%clk 00:11:47]} {[%emt 00:00:05]} 11. d5 {[%clk 00:09:48]} {[%emt 00:01:12]}
f5 {[%clk 00:11:43]} {[%emt 00:00:07]} 12. Qe2 {[%clk 00:09:13]} {[%emt
00:00:37]} a6 {[%clk 00:11:38]} {[%emt 00:00:08]} 13. exf5 {[%clk 00:08:55]}
{[%emt 00:00:21]} Nxf5 {[%clk 00:11:39]} {[%emt 00:00:03]} 14. g4 {[%clk
00:08:51]} {[%emt 00:00:07]} Nd4 {[%clk 00:11:11]} {[%emt 00:00:30]} 15. Nxd4
{[%clk 00:08:33]} {[%emt 00:00:21]} Bxd4 {[%clk 00:11:13]} {[%emt 00:00:02]} 16.
Be3 {[%clk 00:08:28]} {[%emt 00:00:08]} Bg7 {[%clk 00:11:04]} {[%emt 00:00:11]}
17. Bg5 {[%clk 00:07:58]} {[%emt 00:00:34]} Ne5 {[%clk 00:11:05]} {[%emt
00:00:02]} 18. f4 {[%clk 00:07:02]} {[%emt 00:00:59]} Nxc4 {[%clk 00:10:52]}
{[%emt 00:00:15]} 19. Qxc4 {[%clk 00:07:04]} Rf7 {[%clk 00:10:49]} {[%emt
00:00:06]} 20. Re3 {[%clk 00:05:47]} {[%emt 00:01:20]} b5 {[%clk 00:10:48]}
{[%emt 00:00:04]} 21. Qe2 {[%clk 00:05:29]} {[%emt 00:00:22]} Bd4 {[%clk
00:10:46]} {[%emt 00:00:04]} 22. Re1 {[%clk 00:04:54]} {[%emt 00:00:38]} Qb6
{[%clk 00:10:19]} {[%emt 00:00:31]} 23. Kh2 {[%clk 00:04:46]} {[%emt 00:00:11]}
Bxe3 {[%clk 00:10:20]} {[%emt 00:00:02]} 24. Qxe3 {[%clk 00:04:48]} Qxe3 {[%clk
00:10:20]} {[%emt 00:00:01]} 25. Rxe3 {[%clk 00:04:51]} Kf8 {[%clk 00:10:21]}
{[%emt 00:00:04]} 26. Kg3 {[%clk 00:04:09]} {[%emt 00:00:44]} b4 {[%clk
00:10:03]} {[%emt 00:00:22]} 27. Bh6+ {[%clk 00:03:49]} {[%emt 00:00:23]} Ke8
{[%clk 00:10:04]} {[%emt 00:00:01]} 28. Ne4 {[%clk 00:03:50]} {[%emt 00:00:02]}
Kd7 {[%clk 00:10:00]} {[%emt 00:00:07]} 29. Ng5 {[%clk 00:03:37]} {[%emt
00:00:16]} Rf6 {[%clk 00:09:48]} {[%emt 00:00:15]} 30. Nxh7 {[%clk 00:03:09]}
{[%emt 00:00:32]} Bxd5 {[%clk 00:09:44]} {[%emt 00:00:07]} 31. Nxf6+ {[%clk
00:03:02]} {[%emt 00:00:10]} exf6 {[%clk 00:09:45]} 32. a3 {[%clk 00:02:49]}
{[%emt 00:00:17]} a5 {[%clk 00:09:42]} {[%emt 00:00:06]} 33. Bg7 {[%clk
00:02:46]} {[%emt 00:00:06]} bxa3 {[%clk 00:09:37]} {[%emt 00:00:08]} 34. bxa3
{[%clk 00:02:48]} f5 {[%clk 00:09:37]} {[%emt 00:00:03]} 35. Rd3 {[%clk
00:02:38]} {[%emt 00:00:13]} Ke6 {[%clk 00:09:31]} {[%emt 00:00:09]} 36. Bc3
{[%clk 00:02:31]} {[%emt 00:00:09]} a4 {[%clk 00:09:33]} {[%emt 00:00:02]} 37.
Bb4 {[%clk 00:02:33]} {[%emt 00:00:02]} Ra6 {[%clk 00:09:30]} {[%emt 00:00:06]}
38. Rc3 {[%clk 00:02:23]} {[%emt 00:00:13]} Rc6 {[%clk 00:09:12]} {[%emt
00:00:21]} 39. Rxc6 {[%clk 00:02:19]} {[%emt 00:00:07]} Bxc6 {[%clk 00:09:14]}
40. gxf5+ {[%clk 00:02:21]} gxf5 {[%clk 00:09:13]} {[%emt 00:00:03]} 41. Kh4
{[%clk 00:02:21]} {[%emt 00:00:03]} d5 {[%clk 00:09:12]} {[%emt 00:00:04]} 42.
Kg5 {[%clk 00:02:23]} {[%emt 00:00:02]} d4 {[%clk 00:09:13]} {[%emt 00:00:02]}
43. h4 {[%clk 00:02:24]} {[%emt 00:00:01]} d3 {[%clk 00:09:15]} 44. h5 {[%clk
00:02:11]} {[%emt 00:00:16]} Be4 {[%emt 00:00:01]} 45. h6 Kf7 {[%clk 00:09:15]}
46. Bc3 {[%clk 00:02:08]} {[%emt 00:00:07]} d2 {[%clk 00:09:10]} {[%emt
00:00:07]} 47. Bxd2 {[%clk 00:02:10]} {[%emt 00:00:02]} Kg8 {[%clk 00:09:12]}
48. Kg6 {[%clk 00:02:09]} {[%emt 00:00:05]} Bd5 {[%clk 00:09:00]} {[%emt
00:00:15]} 49. h7+ {[%clk 00:02:11]} Kf8 {[%clk 00:08:54]} {[%emt 00:00:03]}
1-0

[Event "4. Memorial Svat.Hastika OPEN"]
[Site "Jesenik, Czech Republic"]
[Date "2022.09.03"]
[Round "1.10"]
[White "Kincl, Dobromir"]
[Black "Ondrackova, Veronika"]
[Result "0-1"]
[TimeControl "720+3"]
[BlackFideId "23739983"]
[WhiteElo "1683"]
[BlackElo "1213"]

1. d4 {[%clk 00:12:04]} Nf6 {[%clk 00:12:05]} {[%emt 00:00:02]} 2. Nf3 {[%clk
00:12:03]} {[%emt 00:00:03]} e6 {[%clk 00:12:06]} {[%emt 00:00:03]} 3. Bg5
{[%clk 00:11:58]} {[%emt 00:00:08]} d5 {[%clk 00:12:03]} {[%emt 00:00:07]} 4.
e3 {[%clk 00:11:57]} {[%emt 00:00:03]} c5 {[%clk 00:11:39]} {[%emt 00:00:28]} 5.
dxc5 {[%clk 00:11:40]} {[%emt 00:00:19]} Bxc5 {[%clk 00:11:39]} {[%emt
00:00:03]} 6. Nbd2 {[%clk 00:11:00]} {[%emt 00:00:42]} Nc6 {[%clk 00:11:23]}
{[%emt 00:00:20]} 7. Bb5 {[%clk 00:10:43]} {[%emt 00:00:20]} Bd7 {[%clk
00:11:01]} {[%emt 00:00:26]} 8. O-O {[%clk 00:10:40]} {[%emt 00:00:05]} O-O
{[%clk 00:10:58]} {[%emt 00:00:07]} 9. c3 {[%clk 00:10:36]} {[%emt 00:00:06]}
h6 {[%clk 00:10:06]} {[%emt 00:00:57]} 10. Bh4 {[%clk 00:10:35]} {[%emt
00:00:02]} Qe7 {[%clk 00:09:18]} {[%emt 00:00:52]} 11. Nb3 {[%clk 00:09:54]}
{[%emt 00:00:44]} Bb6 {[%clk 00:08:58]} {[%emt 00:00:23]} 12. Re1 {[%clk
00:08:39]} {[%emt 00:01:17]} Rac8 {[%clk 00:07:54]} {[%emt 00:01:08]} 13. Bd3
{[%clk 00:08:20]} {[%emt 00:00:22]} e5 {[%clk 00:05:55]} {[%emt 00:02:02]} 14.
e4 {[%clk 00:08:17]} {[%emt 00:00:05]} d4 {[%clk 00:05:20]} {[%emt 00:00:39]}
15. cxd4 {[%clk 00:08:07]} {[%emt 00:00:12]} Bg4 {[%clk 00:04:24]} {[%emt
00:01:00]} 16. d5 {[%clk 00:07:03]} {[%emt 00:01:06]} Nb4 {[%clk 00:03:30]}
{[%emt 00:00:58]} 17. Bb1 {[%clk 00:06:16]} {[%emt 00:00:50]} Rfd8 {[%clk
00:02:20]} {[%emt 00:01:13]} 18. a3 {[%clk 00:06:14]} {[%emt 00:00:05]} Na6
{[%clk 00:02:15]} {[%emt 00:00:08]} 19. Qd3 {[%clk 00:05:34]} {[%emt 00:00:42]}
Nc5 {[%clk 00:01:42]} {[%emt 00:00:37]} 20. Nxc5 {[%clk 00:05:31]} {[%emt
00:00:05]} Qxc5 {[%clk 00:01:28]} {[%emt 00:00:17]} 21. b4 {[%clk 00:05:09]}
{[%emt 00:00:25]} Qd6 {[%clk 00:01:16]} {[%emt 00:00:16]} 22. Bg3 {[%clk
00:05:02]} {[%emt 00:00:09]} Nd7 {[%clk 00:00:50]} {[%emt 00:00:31]} 23. Nh4
{[%clk 00:04:32]} {[%emt 00:00:31]} Qf6 {[%clk 00:00:29]} {[%emt 00:00:25]} 24.
h3 {[%clk 00:03:56]} {[%emt 00:00:39]} Bd4 {[%clk 00:00:14]} {[%emt 00:00:18]}
25. Ra2 {[%clk 00:03:49]} {[%emt 00:00:10]} Bc3 {[%clk 00:00:11]} {[%emt
00:00:07]} 26. Rf1 {[%clk 00:03:38]} {[%emt 00:00:12]} Bh5 {[%clk 00:00:12]}
{[%emt 00:00:03]} 27. f4 {[%clk 00:03:18]} {[%emt 00:00:23]} exf4 {[%clk
00:00:06]} {[%emt 00:00:09]} 28. Rxf4 {[%clk 00:03:05]} {[%emt 00:00:16]} Qd4+
{[%clk 00:00:07]} {[%emt 00:00:03]} 29. Kh2 {[%clk 00:02:25]} {[%emt 00:00:41]}
Qxd3 {[%clk 00:00:08]} {[%emt 00:00:04]} 30. Bxd3 {[%clk 00:02:26]} Be5 {[%clk
00:00:09]} {[%emt 00:00:02]} 31. Rf5 {[%clk 00:02:22]} {[%emt 00:00:06]} Bxg3+
{[%clk 00:00:11]} {[%emt 00:00:02]} 32. Kxg3 {[%clk 00:02:23]} {[%emt
00:00:02]} Rc3 {[%clk 00:00:12]} {[%emt 00:00:02]} 33. Rd2 {[%clk 00:02:20]}
{[%emt 00:00:06]} g6 {[%clk 00:00:12]} {[%emt 00:00:04]} 34. Rff2 {[%clk
00:02:17]} {[%emt 00:00:05]} Ne5 {[%clk 00:00:14]} 35. Kf4 {[%clk 00:01:11]}
{[%emt 00:01:49]} Nxd3+ {[%clk 00:02:12]} {[%emt 00:00:05]} 36. Rxd3 {[%clk
00:00:59]} {[%emt 00:00:15]} Rxd3 {[%clk 00:02:13]} {[%emt 00:00:02]} 37. g4
{[%clk 00:00:53]} {[%emt 00:00:09]} g5+ {[%clk 00:02:12]} {[%emt 00:00:04]} 38.
Ke5 {[%clk 00:00:48]} {[%emt 00:00:07]} gxh4 {[%clk 00:01:08]} {[%emt
00:01:08]} 39. gxh5 {[%clk 00:00:49]} {[%emt 00:00:02]} Rxh3 {[%clk 00:00:39]}
{[%emt 00:00:32]} 40. Rf6 {[%clk 00:00:30]} {[%emt 00:00:22]} Rg3 {[%clk
00:00:30]} {[%emt 00:00:12]} 41. Kd4 {[%clk 00:00:30]} {[%emt 00:00:03]} h3
{[%clk 00:00:28]} {[%emt 00:00:05]} 42. Kc5 {[%clk 00:00:31]} {[%emt 00:00:02]}
h2 {[%clk 00:00:27]} {[%emt 00:00:04]} 43. Rf1 {[%clk 00:00:31]} {[%emt
00:00:03]} Rg1 {[%clk 00:00:27]} {[%emt 00:00:03]} 44. Kd4 {[%clk 00:00:00]}
{[%emt 00:00:12]} 0-1

[Event "4. Memorial Svat.Hastika OPEN"]
[Site "Jesenik, Czech Republic"]
[Date "2022.09.03"]
[Round "2.1"]
[White "Banasik, Krzysztof"]
[Black "Skovron, Josef"]
[Result "1/2-1/2"]
[TimeControl "720+3"]
[WhiteFideId "1125222"]
[BlackFideId "329886"]
[WhiteElo "2166"]
[BlackElo "1821"]

1. e4 {[%clk 00:12:04]} c5 {[%clk 00:12:05]} {[%emt 00:00:01]} 2. Nf3 {[%clk
00:12:05]} {[%emt 00:00:03]} Nc6 {[%clk 00:12:06]} {[%emt 00:00:01]} 3. Nc3
{[%clk 00:12:06]} {[%emt 00:00:03]} e5 {[%clk 00:12:05]} {[%emt 00:00:05]} 4.
Bc4 {[%clk 00:12:07]} {[%emt 00:00:02]} Be7 {[%clk 00:11:59]} {[%emt 00:00:08]}
5. d3 {[%clk 00:12:07]} {[%emt 00:00:03]} Nf6 {[%clk 00:12:01]} {[%emt
00:00:01]} 6. a3 {[%clk 00:12:09]} {[%emt 00:00:02]} O-O {[%clk 00:11:55]}
{[%emt 00:00:07]} 7. O-O {[%clk 00:12:08]} {[%emt 00:00:05]} d6 {[%clk
00:11:50]} {[%emt 00:00:08]} 8. h3 {[%clk 00:12:09]} {[%emt 00:00:02]} h6
{[%clk 00:11:41]} {[%emt 00:00:12]} 9. Re1 {[%clk 00:11:49]} {[%emt 00:00:23]}
a6 {[%clk 00:10:09]} {[%emt 00:01:35]} 10. Nd5 {[%clk 00:11:36]} {[%emt
00:00:16]} Be6 {[%clk 00:09:34]} {[%emt 00:00:38]} 11. c3 {[%clk 00:11:32]}
{[%emt 00:00:08]} b5 {[%clk 00:09:18]} {[%emt 00:00:20]} 12. Ba2 {[%clk
00:11:31]} {[%emt 00:00:04]} Rc8 {[%clk 00:09:09]} {[%emt 00:00:11]} 13. Be3
{[%clk 00:10:27]} {[%emt 00:01:06]} Na5 {[%clk 00:08:18]} {[%emt 00:00:54]} 14.
b4 {[%clk 00:10:17]} {[%emt 00:00:14]} Nb7 {[%clk 00:08:12]} {[%emt 00:00:08]}
15. a4 {[%clk 00:09:44]} {[%emt 00:00:36]} Nxd5 {[%clk 00:08:05]} {[%emt
00:00:10]} 16. exd5 {[%clk 00:09:13]} {[%emt 00:00:35]} Bf5 {[%clk 00:07:50]}
{[%emt 00:00:18]} 17. Bb1 {[%clk 00:08:30]} {[%emt 00:00:46]} Bf6 {[%clk
00:07:23]} {[%emt 00:00:30]} 18. Ra2 {[%clk 00:07:24]} {[%emt 00:01:10]} Qd7
{[%clk 00:06:46]} {[%emt 00:00:39]} 19. Nd2 {[%clk 00:07:01]} {[%emt 00:00:26]}
Be7 {[%clk 00:04:50]} {[%emt 00:01:59]} 20. axb5 {[%clk 00:04:37]} {[%emt
00:02:27]} Qxb5 {[%clk 00:04:24]} {[%emt 00:00:29]} 21. bxc5 {[%clk 00:04:13]}
{[%emt 00:00:28]} Nxc5 {[%emt 00:00:18]} 22. d4 {[%clk 00:04:12]} {[%emt
00:00:03]} Bxb1 {[%clk 00:03:27]} {[%emt 00:00:45]} 23. Qxb1 {[%clk 00:03:36]}
{[%emt 00:00:39]} Na4 {[%clk 00:03:09]} {[%emt 00:00:22]} 24. Qxb5 {[%clk
00:02:52]} {[%emt 00:00:47]} axb5 {[%clk 00:03:11]} {[%emt 00:00:01]} 25. c4
{[%clk 00:02:51]} {[%emt 00:00:04]} Nb6 {[%clk 00:02:36]} {[%emt 00:00:37]} 26.
cxb5 {[%clk 00:02:28]} {[%emt 00:00:26]} Nxd5 {[%clk 00:02:35]} {[%emt
00:00:05]} 27. dxe5 {[%clk 00:01:51]} {[%emt 00:00:39]} dxe5 {[%clk 00:02:36]}
{[%emt 00:00:02]} 28. Ba7 {[%clk 00:01:15]} {[%emt 00:00:39]} Ra8 {[%clk
00:00:47]} {[%emt 00:01:52]} 29. Rxe5 {[%clk 00:01:12]} {[%emt 00:00:06]} Rfd8
{[%clk 00:00:34]} {[%emt 00:00:16]} 30. Rxe7 {[%clk 00:00:36]} {[%emt
00:00:39]} Nxe7 {[%clk 00:00:35]} {[%emt 00:00:03]} 31. b6 {[%clk 00:00:37]}
{[%emt 00:00:02]} Nc6 {[%clk 00:00:34]} {[%emt 00:00:04]} 32. Nc4 {[%clk
00:00:36]} {[%emt 00:00:05]} Nxa7 {[%clk 00:00:28]} {[%emt 00:00:08]} 33. bxa7
{[%clk 00:00:38]} Rd7 {[%clk 00:00:25]} {[%emt 00:00:06]} 34. Ne3 {[%clk
00:00:39]} {[%emt 00:00:02]} Rdxa7 {[%clk 00:00:26]} {[%emt 00:00:02]} 35. Rc2
{[%clk 00:00:41]} Ra1+ {[%clk 00:00:27]} {[%emt 00:00:02]} 36. Kh2 {[%clk
00:00:44]} R8a7 {[%clk 00:00:28]} {[%emt 00:00:03]} 1/2-1/2

[Event "4. Memorial Svat.Hastika OPEN"]
[Site "Jesenik, Czech Republic"]
[Date "2022.09.03"]
[Round "2.3"]
[White "Bares, Jachym"]
[Black "Zrubek, Adam"]
[Result "1-0"]
[TimeControl "720+3"]
[WhiteFideId "345075"]
[BlackFideId "23718706"]
[WhiteElo "1978"]
[BlackElo "1583"]

1. e4 {[%clk 00:12:04]} {[%emt 00:00:02]} c5 {[%clk 00:12:01]} {[%emt
00:00:05]} 2. Nf3 {[%clk 00:12:04]} {[%emt 00:00:03]} d6 {[%clk 00:12:03]}
{[%emt 00:00:02]} 3. d4 {[%clk 00:12:06]} {[%emt 00:00:01]} cxd4 {[%clk
00:12:05]} {[%emt 00:00:02]} 4. Nxd4 {[%clk 00:12:07]} Nf6 {[%clk 00:12:06]}
{[%emt 00:00:01]} 5. Nc3 {[%clk 00:12:09]} {[%emt 00:00:02]} g6 {[%clk
00:12:08]} 6. Be3 {[%clk 00:12:11]} Bg7 {[%clk 00:12:10]} 7. Bc4 {[%clk
00:12:11]} {[%emt 00:00:03]} O-O {[%clk 00:12:09]} {[%emt 00:00:03]} 8. f3
{[%clk 00:12:13]} {[%emt 00:00:02]} Nc6 {[%clk 00:12:06]} {[%emt 00:00:06]} 9.
Qd2 {[%clk 00:12:10]} {[%emt 00:00:06]} Bd7 {[%clk 00:12:06]} {[%emt 00:00:03]}
10. O-O-O {[%clk 00:11:49]} {[%emt 00:00:24]} Rc8 {[%clk 00:12:07]} {[%emt
00:00:02]} 11. Bb3 {[%clk 00:11:50]} {[%emt 00:00:02]} Nxd4 {[%clk 00:12:04]}
{[%emt 00:00:06]} 12. Bxd4 {[%clk 00:11:51]} {[%emt 00:00:02]} b5 {[%clk
00:12:05]} {[%emt 00:00:02]} 13. Nd5 {[%clk 00:11:52]} {[%emt 00:00:02]} Nxd5
{[%clk 00:12:00]} {[%emt 00:00:07]} 14. Bxg7 {[%clk 00:11:52]} {[%emt
00:00:03]} Kxg7 {[%clk 00:12:02]} {[%emt 00:00:02]} 15. exd5 {[%clk 00:11:53]}
{[%emt 00:00:03]} a5 {[%clk 00:11:54]} {[%emt 00:00:11]} 16. a3 {[%clk
00:11:49]} {[%emt 00:00:07]} Kg8 {[%clk 00:09:19]} {[%emt 00:02:37]} 17. Rhe1
{[%clk 00:11:46]} {[%emt 00:00:06]} Re8 {[%clk 00:08:54]} {[%emt 00:00:29]} 18.
Re3 {[%clk 00:10:39]} {[%emt 00:01:10]} Qc7 {[%clk 00:06:50]} {[%emt 00:02:07]}
19. g4 {[%clk 00:09:59]} {[%emt 00:00:42]} b4 {[%clk 00:06:06]} {[%emt
00:00:47]} 20. a4 {[%clk 00:09:54]} {[%emt 00:00:09]} f6 {[%clk 00:05:32]}
{[%emt 00:00:36]} 21. h4 {[%clk 00:09:38]} {[%emt 00:00:18]} Kf7 {[%clk
00:05:08]} {[%emt 00:00:27]} 22. h5 {[%clk 00:08:03]} {[%emt 00:01:39]} gxh5
{[%clk 00:03:57]} {[%emt 00:01:14]} 23. Rh1 {[%clk 00:07:47]} {[%emt 00:00:18]}
Rg8 {[%clk 00:03:06]} {[%emt 00:00:55]} 24. Rxh5 {[%clk 00:07:48]} {[%emt
00:00:02]} Rg7 {[%clk 00:03:08]} {[%emt 00:00:01]} 25. Qe2 {[%clk 00:05:58]}
{[%emt 00:01:53]} Be8 {[%clk 00:02:36]} {[%emt 00:00:35]} 26. f4 {[%clk
00:04:50]} {[%emt 00:01:11]} Kf8 {[%clk 00:02:09]} {[%emt 00:00:30]} 27. Rh1
{[%clk 00:04:48]} {[%emt 00:00:04]} Bd7 {[%clk 00:01:01]} {[%emt 00:01:12]} 28.
f5 {[%clk 00:04:49]} Qc5 {[%clk 00:00:32]} {[%emt 00:00:32]} 29. Reh3 {[%clk
00:04:44]} {[%emt 00:00:07]} Qd4 {[%clk 00:00:05]} {[%emt 00:00:31]} 30. Rh4
{[%clk 00:01:10]} {[%emt 00:03:37]} Qf4+ {[%clk 00:00:05]} {[%emt 00:00:03]} 31.
Kb1 {[%clk 00:01:11]} {[%emt 00:00:03]} Qg5 {[%clk 00:00:04]} {[%emt 00:00:03]}
32. Rxh7 {[%clk 00:00:58]} {[%emt 00:00:15]} Qxg4 {[%clk 00:00:06]} {[%emt
00:00:02]} 33. Rh8+ {[%clk 00:00:23]} {[%emt 00:00:37]} Kf7 {[%clk 00:00:07]}
{[%emt 00:00:03]} 34. Qe6+ {[%clk 00:00:15]} {[%emt 00:00:11]} 1-0

[Event "4. Memorial Svat.Hastika OPEN"]
[Site "Jesenik, Czech Republic"]
[Date "2022.09.03"]
[Round "2.4"]
[White "Cimburek, Jan"]
[Black "Cempel, Jaroslav"]
[Result "1-0"]
[TimeControl "720+3"]
[WhiteFideId "390283"]
[BlackFideId "300730"]
[WhiteElo "1591"]
[BlackElo "1911"]

1. Nf3 {[%clk 00:12:03]} {[%emt 00:00:03]} f5 {[%clk 00:12:04]} {[%emt
00:00:02]} 2. d4 {[%clk 00:12:04]} {[%emt 00:00:01]} Nf6 {[%clk 00:12:06]}
{[%emt 00:00:02]} 3. c4 {[%clk 00:12:06]} e6 {[%clk 00:12:08]} 4. Nc3 {[%clk
00:12:03]} {[%emt 00:00:07]} d5 {[%clk 00:12:10]} 5. a3 {[%clk 00:11:55]}
{[%emt 00:00:10]} c6 {[%clk 00:12:12]} 6. b4 {[%clk 00:11:57]} {[%emt
00:00:01]} dxc4 {[%clk 00:11:58]} {[%emt 00:00:17]} 7. e3 {[%clk 00:11:51]}
{[%emt 00:00:09]} b5 {[%clk 00:12:00]} {[%emt 00:00:01]} 8. a4 {[%clk
00:11:52]} {[%emt 00:00:02]} Bxb4 {[%clk 00:11:56]} {[%emt 00:00:07]} 9. Bd2
{[%clk 00:11:47]} {[%emt 00:00:08]} Bxc3 {[%clk 00:09:47]} {[%emt 00:02:12]} 10.
Bxc3 {[%clk 00:11:48]} {[%emt 00:00:01]} Ne4 {[%clk 00:09:45]} {[%emt
00:00:05]} 11. Bb4 {[%clk 00:11:29]} {[%emt 00:00:23]} a5 {[%clk 00:09:06]}
{[%emt 00:00:43]} 12. axb5 {[%clk 00:11:30]} {[%emt 00:00:02]} cxb5 {[%clk
00:09:08]} 13. Ne5 {[%clk 00:11:16]} {[%emt 00:00:17]} g6 {[%clk 00:08:16]}
{[%emt 00:00:53]} 14. f3 {[%clk 00:10:43]} {[%emt 00:00:37]} Bb7 {[%clk
00:05:15]} {[%emt 00:03:04]} 15. fxe4 {[%clk 00:09:49]} {[%emt 00:00:57]} axb4
{[%clk 00:05:16]} {[%emt 00:00:02]} 16. Rxa8 {[%clk 00:09:50]} {[%emt
00:00:02]} Bxa8 {[%clk 00:05:18]} 17. exf5 {[%clk 00:09:44]} {[%emt 00:00:09]}
exf5 {[%clk 00:05:06]} {[%emt 00:00:15]} 18. Bxc4 {[%clk 00:08:32]} {[%emt
00:01:14]} Qa5 {[%clk 00:02:37]} {[%emt 00:02:32]} 19. Bf7+ {[%clk 00:07:19]}
{[%emt 00:01:17]} Ke7 {[%clk 00:02:01]} {[%emt 00:00:40]} 20. O-O {[%clk
00:07:17]} {[%emt 00:00:05]} Nc6 {[%clk 00:01:04]} {[%emt 00:00:59]} 21. Qb3
{[%clk 00:06:22]} {[%emt 00:00:58]} Nd8 {[%clk 00:00:20]} {[%emt 00:00:47]} 22.
Rc1 {[%clk 00:02:59]} {[%emt 00:03:26]} Qa3 {[%clk 00:00:20]} {[%emt 00:00:03]}
23. Rc7+ {[%clk 00:02:58]} {[%emt 00:00:03]} Kf6 {[%clk 00:00:20]} {[%emt
00:00:04]} 24. Qxa3 {[%clk 00:00:37]} {[%emt 00:02:24]} bxa3 {[%clk 00:00:21]}
{[%emt 00:00:02]} 25. Bb3 {[%clk 00:00:39]} {[%emt 00:00:01]} b4 {[%clk
00:00:08]} {[%emt 00:00:16]} 26. Bf7 {[%clk 00:12:03]} {[%emt 00:01:01]} Ke7
{[%clk 00:12:03]} 1-0